bitfinex/quotes_ETHUSD_20250711
["timestamp","ask_amount","ask_price","bid_price","bid_amount"]
[1752232015282,0.55,2998.9,2998.4,0.002]
[1752232015788,0.55,2998.7,2998.4,0.002]
[1752232016007,5.655,2998.7,2998.4,0.002]
[1752232016304,6.12,2998.7,2998.4,0.002]
[1752232016601,6.71017,2998.7,2998.4,0.002]
[1752232016967,6.71017,2998.7,2998.1,0.7329]
[1752232017408,0.8198,2998.6,2998.1,0.7329]
[1752232017604,1.2848,2998.6,2997.8,3.79652789]
[1752232018171,1.2848,2998.6,2998.0,3.33549567]
[1752232018378,0.8198,2998.6,2998.0,3.79633952]
[1752232018681,0.8198,2998.6,2998.3,3.33519535]
[1752232018881,5.655,2998.7,2998.4,0.4608]
[1752232018882,5.105,2998.7,2998.4,0.4608]
[1752232019082,0.55,2998.9,2998.5,0.4608]
[1752232019305,0.55,2998.9,2998.0,0.37963395]
[1752232019306,5.105,2998.8,2998.4,3.3350765]
[1752232019512,0.55,2998.9,2998.6,3.79563047]
[1752232019805,5.655,2998.9,2998.7,0.4608]
[1752232020011,5.105,2999.0,2998.7,1.2353]
[1752232020308,5.105,2999.0,2998.7,0.4608]
[1752232021312,0.55,2998.9,2998.5,0.8119]
[1752232021609,0.55,2998.9,2998.5,0.4608]
[1752232021807,0.55,2998.9,2998.4,0.002]
[1752232022200,1.3451,2998.7,2998.4,0.002]
[1752232022991,0.465,2998.6,2998.4,0.002]
[1752232023405,5.75101,2998.6,2998.4,0.002]
[1752232023915,5.28601,2998.6,2998.4,0.002]
[1752232025385,5.105,2998.6,2998.4,0.002]
[1752232025913,5.57,2998.6,2998.4,0.002]
[1752232027592,5.105,2998.6,2998.4,0.002]
[1752232028300,5.57,2998.6,2998.4,0.002]
[1752232028506,5.105,2998.6,2998.4,0.002]
[1752232028710,5.105,2998.6,2998.4,3.33709328]
[1752232028711,4.026047,2998.5,2998.4,3.33709328]
[1752232029009,4.026047,2998.5,2998.4,0.002]
[1752232029210,4.026047,2998.5,2998.4,3.79791205]
[1752232030028,4.026047,2998.5,2998.4,0.002]
[1752232032024,4.026047,2998.5,2998.4,0.4551]
[1752232032325,9.603747,2998.5,2997.8,0.8163]
[1752232032632,1.0217,2998.4,2997.8,0.8163]
[1752232034033,0.4717,2998.3,2997.3,0.8163]
[1752232034324,0.7997,2998.0,2997.3,0.8163]
[1752232034526,6.1277,2997.9,2997.3,0.8163]
[1752232034701,6.1277,2997.9,2997.2,0.002]
[1752232034702,4.718787,2997.8,2997.2,0.002]
[1752232034918,5.190487,2997.8,2997.2,0.002]
[1752232035235,0.7829,2997.7,2997.2,0.002]
[1752232035538,5.106,2997.6,2997.2,0.002]
[1752232035838,4.026047,2997.5,2997.2,0.002]
[1752232036229,0.55,2997.4,2997.2,0.002]
[1752232036411,5.047747,2997.4,2997.2,0.002]
[1752232036613,4.576047,2997.4,2997.2,0.002]
[1752232036824,0.4717,2997.3,2997.2,0.002]
[1752232038514,5.106,2997.3,2997.2,0.002]
[1752232039930,5.5777,2997.3,2997.2,0.002]
[1752232040129,6.5380747,2997.3,2997.2,0.002]
[1752232040330,7.0880747,2997.3,2997.2,0.002]
[1752232040530,17.8800747,2997.3,2997.2,0.002]
[1752232040742,21.9061217,2997.3,2997.2,0.002]
[1752232040944,21.3561217,2997.3,2997.2,0.002]
[1752232041146,21.9061217,2997.3,2997.2,0.002]
[1752232041645,21.9071217,2997.3,2997.2,0.002]
[1752232042648,16.8001217,2997.3,2997.2,0.002]
[1752232042954,21.9071217,2997.3,2997.2,0.002]
[1752232043251,16.8001217,2997.3,2997.2,0.002]
[1752232043426,21.9071217,2997.3,2997.2,0.002]
[1752232044428,15.368047,2997.3,2997.2,0.002]
[1752232044628,20.475047,2997.3,2997.2,0.002]
[1752232044951,20.946747,2997.3,2997.2,0.002]
[1752232045159,15.839747,2997.3,2997.2,0.002]
[1752232045373,20.949747,2997.3,2997.2,0.002]
[1752232045537,15.839747,2997.3,2997.2,0.002]
[1752232045732,20.950747,2997.3,2997.2,0.002]
[1752232046086,9.137047,2997.3,2997.2,0.002]
[1752232046257,9.608747,2997.3,2997.2,0.002]
[1752232046455,11.1196217,2997.3,2997.2,0.002]
[1752232046617,21.9145217,2997.3,2997.2,0.002]
[1752232048060,16.8035217,2997.3,2997.2,0.002]
[1752232048253,20.957647,2997.3,2997.2,0.002]
[1752232050850,9.140047,2997.3,2997.2,0.002]
[1752232051256,1.46283411,2997.9,2997.3,3.33633434]
[1752232051570,10.55,2997.7,2997.2,0.4551]
[1752232051770,5.114,2997.6,2997.2,0.4551]
[1752232052132,1.0217,2997.7,2997.2,0.4551]
[1752232052334,1.2987,2997.9,2997.4,3.33620305]
[1752232052642,0.7673,2997.6,2997.2,0.002]
[1752232052859,6.19073,2997.5,2997.2,0.002]
[1752232053073,6.66243,2997.5,2997.2,0.002]
[1752232053773,0.4717,2997.4,2997.2,0.002]
[1752232053976,5.113,2997.3,2997.2,0.002]
[1752232054479,6.1347,2997.3,2997.2,0.002]
[1752232055748,6.8398661,2997.3,2997.2,0.002]
[1752232056266,17.6699661,2997.3,2997.2,0.002]
[1752232056453,17.65711073,2997.3,2997.2,0.002]
[1752232061590,17.65711073,2997.3,2997.1,0.002]
[1752232061591,0.55,2996.9,2996.5,0.8298]
[1752232061750,9.136047,2996.8,2996.5,1.2575]
[1752232061950,4.022047,2996.8,2996.5,1.2575]
[1752232062153,5.114,2996.7,2996.5,1.2575]
[1752232063459,4.022047,2996.8,2996.5,0.8298]
[1752232063677,5.114,2996.7,2996.6,0.4277]
[1752232063973,4.022047,2996.8,2996.7,0.4277]
[1752232064282,9.135047,2996.8,2996.7,0.4277]
[1752232065582,4.022047,2996.8,2996.7,0.4277]
[1752232065775,9.135047,2996.8,2996.7,0.4277]
[1752232067016,9.135047,2996.8,2996.1,1.2438]
[1752232067526,9.135047,2996.8,2996.1,4.58141743]
[1752232067682,11.0098,2996.7,2996.1,0.8161]
[1752232068000,10.8117,2996.5,2996.0,0.002]
[1752232068209,5.114,2996.4,2996.0,0.002]
[1752232069319,11.0098,2996.3,2995.4,1.2431]
[1752232069483,9.137047,2996.2,2995.4,1.2431]
[1752232069677,9.39192904,2996.2,2995.4,1.2431]
[1752232069880,9.39192904,2996.2,2995.4,4.58154088]
[1752232070082,9.39192904,2996.2,2995.4,1.2431]
[1752232070902,0.55,2996.0,2995.4,0.8154]
[1752232071081,0.55,2995.8,2995.4,0.8154]
[1752232071288,5.115,2995.7,2995.4,0.8154]
[1752232072581,5.115,2995.7,2995.2,0.8203]
[1752232072582,4.022047,2995.6,2995.2,0.8203]
[1752232072897,4.481847,2995.6,2995.0,3.33882941]
[1752232073285,5.031847,2995.6,2995.0,3.3388907]
[1752232073488,14.572047,2995.6,2994.9,0.4277]
[1752232073731,20.145847,2995.6,2994.9,3.76665462]
[1752232074034,4.022047,2995.6,2995.3,1.2143]
[1752232074319,4.572047,2995.6,2994.8,0.03339121]
[1752232074516,4.572047,2995.6,2994.9,4.13022645]
[1752232074517,20.145847,2995.6,2994.9,4.13022645]
[1752232074687,20.145847,2995.6,2994.9,0.7913]
[1752232074884,14.022047,2995.6,2995.2,3.33857552]
[1752232075205,9.162047,2995.6,2995.0,3.76656575]
[1752232075521,4.022047,2995.6,2995.5,4.55124084]
[1752232075719,4.022047,2995.6,2995.5,5.00636492]
[1752232076018,4.022047,2995.6,2995.5,4.55124084]
[1752232076216,4.022047,2995.6,2995.5,1.2129]
[1752232076813,4.022047,2995.6,2995.5,0.7852]
[1752232077116,4.022047,2995.6,2995.5,4.55124084]
[1752232080813,4.022047,2995.6,2995.5,1.2129]
[1752232081019,4.022047,2995.6,2995.5,4.55124084]
[1752232081628,4.022047,2995.6,2995.5,5.26309646]
[1752232083290,4.022047,2995.6,2995.5,1.2129]
[1752232083728,4.022047,2995.6,2995.5,4.55124084]
[1752232083912,4.022047,2995.6,2995.5,0.7852]
[1752232084292,4.022047,2995.6,2995.5,0.002]
[1752232085209,4.481847,2995.6,2995.5,0.002]
[1752232085412,4.022047,2995.6,2995.5,0.002]
[1752232086298,4.022047,2996.2,2995.9,3.33782619]
[1752232086647,5.146,2996.8,2996.1,4.09482635]
[1752232086812,5.6058,2996.8,2996.1,4.09482635]
[1752232087127,5.6058,2996.8,2996.1,0.7572]
[1752232087335,0.4598,2996.7,2996.0,3.33775382]
[1752232087491,1.09991,2996.7,2996.1,3.33765054]
[1752232087698,1.09991,2996.7,2996.3,3.33742292]
[1752232088022,1.09991,2996.7,2996.1,3.3375816]
[1752232088409,1.09991,2996.7,2996.0,3.76543341]
[1752232088610,0.55,2996.6,2995.8,0.7703]
[1752232088839,1.25402666,2996.6,2996.0,3.33777922]
[1752232088996,0.4598,2996.5,2995.9,8.48585377]
[1752232089543,0.4598,2996.5,2996.0,3.33778053]
[1752232089845,1.25402666,2996.6,2996.0,3.33778053]
[1752232089846,0.55,2996.6,2996.2,3.33755148]
[1752232090144,0.55,2996.6,2995.9,8.48586104]
[1752232090320,1.61763566,2996.6,2996.0,3.33772933]
[1752232090693,1.61763566,2996.6,2996.1,3.33762756]
[1752232091329,10.24435663,2996.7,2996.1,3.79524421]
[1752232091507,10.24435663,2996.7,2996.3,3.33742516]
[1752232091708,10.7953,2996.9,2996.4,3.33733464]
[1752232091919,5.144,2996.8,2996.3,3.79499372]
[1752232092122,5.6176,2996.8,2996.3,3.33739372]
[1752232093026,5.6176,2996.8,2996.4,3.33733366]
[1752232093232,5.6176,2996.8,2996.3,3.33739739]
[1752232093435,0.7953,2996.9,2996.3,0.79028452]
[1752232093628,5.142,2997.0,2996.7,3.3369671]
[1752232094119,5.142,2997.0,2996.4,0.4576]
[1752232094120,5.142,2997.0,2996.5,3.33722676]
[1752232094319,5.142,2997.0,2996.6,3.33701862]
[1752232094498,0.8167,2997.2,2996.8,3.3368272]
[1752232094699,0.8167,2997.2,2996.6,3.33703291]
[1752232094700,10.0,2997.2,2996.7,0.8321]
[1752232094896,10.0,2997.2,2996.8,3.33681929]
[1752232095096,10.0,2997.2,2996.9,3.33676368]
[1752232095531,0.8167,2997.4,2996.9,3.33670694]
[1752232095736,5.9567,2997.4,2996.8,3.33683908]
[1752232095939,5.9567,2997.4,2996.9,3.33673269]
[1752232096098,5.14,2997.4,2996.9,3.33674972]
[1752232096431,5.14,2997.4,2997.1,3.33655867]
[1752232096599,5.14,2997.4,2997.1,3.79415867]
[1752232096807,5.9567,2997.7,2997.1,1.17401588]
[1752232096999,0.4736,2997.9,2997.4,3.33616016]
[1752232097200,5.14,2997.9,2997.3,4.16261797]
[1752232097415,5.14,2997.9,2997.5,3.33609079]
[1752232097631,5.14,2997.9,2997.3,4.16261797]
[1752232097632,5.14,2997.9,2997.4,3.33619726]
[1752232098024,5.14,2997.9,2997.5,3.33605031]
[1752232098228,5.14,2997.9,2997.6,3.33597816]
[1752232098649,5.14,2997.9,2997.6,3.79357816]
[1752232098807,5.955,2998.2,2997.6,0.4576]
[1752232099542,6.20431149,2998.2,2997.6,0.4576]
[1752232099733,6.20431149,2998.2,2997.6,3.33594515]
[1752232099931,5.38831149,2998.2,2997.6,1.22686824]
[1752232100132,0.24931149,2998.2,2997.8,0.7643]
[1752232100323,10.0,2998.3,2997.8,0.7643]
[1752232100519,5.137,2998.4,2997.9,3.33563409]
[1752232100726,5.137,2998.4,2997.9,0.4576]
[1752232100968,0.816,2998.5,2998.1,3.3353847]
[1752232101114,1.2896,2998.7,2998.1,4.00581615]
[1752232101466,6.4266,2998.7,2998.1,0.67043094]
[1752232101666,6.4266,2998.7,2997.9,0.4576]
[1752232101667,6.4266,2998.7,2997.9,3.79321672]
[1752232101847,6.6816379,2998.7,2997.9,3.79321672]
[1752232102017,1.0710379,2998.7,2998.0,3.33554664]
[1752232102212,5.136,2998.6,2998.0,3.36890221]
[1752232102421,5.136,2998.6,2998.1,3.71804829]
[1752232102767,0.001,2998.9,2998.3,0.7643]
[1752232102924,0.001,2998.9,2998.4,0.03335112]
[1752232103332,0.001,2998.9,2998.4,0.4576]
[1752232104021,0.001,2998.9,2998.5,3.33497698]
[1752232104222,0.001,2998.9,2998.5,1.25013572]
[1752232104425,0.001,2998.9,2998.6,3.82581571]
[1752232104721,0.001,2998.9,2998.6,0.4576]
[1752232104942,0.001,2998.9,2998.8,4.1398672]
[1752232105141,0.001,2998.9,2998.8,4.17321387]
[1752232105342,0.001,2998.9,2998.8,4.5974672]
[1752232105555,0.001,2998.9,2998.8,5.93763124]
[1752232106348,0.001,2998.9,2998.8,5.90428457]
[1752232106546,0.001,2998.9,2998.8,2.11201737]
[1752232106734,0.001,2998.9,2998.6,5.135]
[1752232107128,0.001,2998.9,2998.5,0.8052]
[1752232107326,0.001,2998.9,2998.5,5.135]
[1752232107867,0.001,2998.9,2998.8,3.3346672]
[1752232108064,0.001,2998.9,2998.8,4.17321387]
[1752232108263,0.001,2998.9,2998.8,4.9697731]
[1752232108435,0.001,2998.9,2998.8,5.4273731]
[1752232109261,1e-08,2998.9,2998.8,20.5633731]
[1752232109562,0.001,2999.6,2999.5,3.33388898]
[1752232109744,0.001,2999.6,2999.5,9.28862786]
[1752232109957,0.001,2999.6,2999.5,12.01801104]
[1752232110156,1e-08,2999.6,2999.5,22.01801104]
[1752232111076,1e-08,2999.6,2999.5,22.02401104]
[1752232112888,1e-08,2999.6,2999.5,16.87901104]
[1752232113057,1e-08,2999.6,2999.5,22.02401104]
[1752232114361,1e-08,2999.6,2999.5,16.87901104]
[1752232114679,1e-08,2999.6,2999.5,22.02301104]
[1752232115051,1e-08,2999.6,2999.5,8.23052206]
[1752232115256,1e-08,2999.6,2999.5,9.25928898]
[1752232116288,1e-08,2999.6,2999.2,0.7915]
[1752232116455,0.4736,2999.5,2998.9,0.7915]
[1752232116786,0.4736,2999.5,2999.0,8.478408]
[1752232117170,0.4736,2999.5,2999.0,5.144]
[1752232117545,1e-08,2999.6,2999.1,3.33431882]
[1752232117879,1e-08,2999.6,2999.3,3.33411109]
[1752232118076,1e-08,2999.6,2999.2,5.145]
[1752232118283,0.47360001,2999.6,2999.2,5.145]
[1752232118484,1e-08,2999.6,2999.2,8.47915994]
[1752232118841,1e-08,2999.6,2999.2,5.145]
[1752232119039,1e-08,2999.6,2999.2,8.47920137]
[1752232119773,1e-08,2999.6,2999.3,3.334103]
[1752232119947,1e-08,2999.6,2999.2,5.6026]
[1752232120144,1e-08,2999.6,2999.2,8.93678517]
[1752232120541,1e-08,2999.6,2999.2,8.47918517]
[1752232121241,1e-08,2999.6,2999.2,5.145]
[1752232121443,0.45180001,2999.6,2999.2,5.145]
[1752232121694,0.55,2999.4,2998.3,0.8282]
[1752232121860,0.55,2999.4,2998.4,4.954]
[1752232121861,0.55,2999.2,2998.4,4.954]
[1752232122044,0.4518,2999.1,2998.4,4.954]
[1752232122991,0.7775,2999.0,2998.4,4.954]
[1752232123173,4.799547,2999.0,2998.4,4.954]
[1752232123572,0.4518,2998.9,2998.4,4.954]
[1752232123879,0.4518,2998.8,2998.1,3.76378764]
[1752232124060,0.4518,2998.8,2998.2,5.60015876]
[1752232124061,4.022047,2998.7,2998.2,5.60015876]
[1752232124260,4.022047,2998.7,2998.2,9.36386122]
[1752232124576,4.022047,2998.7,2998.2,6.02855876]
[1752232124779,0.7762,2998.6,2998.2,0.45515876]
[1752232125009,0.7762,2998.6,2998.2,5.145]
[1752232127063,0.7762,2998.6,2998.2,8.48027318]
[1752232127282,0.7762,2998.6,2998.2,5.145]
[1752232127909,0.4518,2998.5,2998.3,5.14]
[1752232128069,0.4518,2998.5,2998.1,5.14]
[1752232129415,0.7762,2998.6,2998.1,5.14]
[1752232129580,0.7762,2998.6,2998.1,8.47542915]
[1752232129910,1.228,2998.6,2998.1,5.98754772]
[1752232130906,0.7762,2998.6,2998.1,0.84754772]
[1752232131106,0.4518,2998.5,2998.2,5.14]
[1752232131277,0.7762,2998.6,2998.0,3.33547404]
[1752232131477,0.7762,2998.6,2998.2,3.33533283]
[1752232131687,0.7762,2998.6,2998.1,5.139]
[1752232131874,0.4518,2998.5,2998.1,5.139]
[1752232132704,4.022047,2998.7,2998.0,0.002]
[1752232132705,0.55,2998.4,2998.0,0.002]
[1752232132904,0.55,2998.1,2998.0,0.002]
[1752232133106,1.3742,2998.1,2998.0,0.002]
[1752232133387,1.826,2998.1,2998.0,0.002]
[1752232138390,5.848047,2998.1,2998.0,0.002]
[1752232138584,6.9239784,2998.1,2998.0,0.002]
[1752232140123,22.0609784,2998.1,2998.0,0.002]
[1752232140324,15.848047,2998.1,2998.0,0.002]
[1752232140528,4.022047,2998.1,2998.0,0.002]
[1752232140831,0.7667,2998.4,2998.0,0.002]
[1752232141399,4.022047,2998.5,2998.1,1.246]
[1752232141608,4.022047,2998.5,2998.1,0.8176]
[1752232141795,4.022047,2998.5,2998.3,3.33522329]
[1752232141996,4.022047,2998.5,2998.2,3.33529169]
[1752232142338,4.022047,2998.5,2998.4,3.33511205]
[1752232142636,0.7667,2999.1,2998.5,3.33489324]
[1752232142790,10.7667,2999.1,2998.6,3.33487612]
[1752232143197,11.2185,2999.1,2998.4,3.76345501]
[1752232143431,10.7667,2999.1,2998.3,3.33516286]
[1752232143751,0.4518,2999.0,2998.4,3.33510498]
[1752232144030,0.7667,2999.1,2998.4,3.33510498]
[1752232144228,10.7667,2999.1,2998.4,3.33510498]
[1752232144933,1.0018,2999.0,2998.1,4.15297121]
[1752232145238,0.4518,2998.9,2998.2,3.33533453]
[1752232145546,0.55,2999.2,2998.2,0.46175334]
[1752232145696,10.55,2999.2,2998.7,3.33468939]
[1752232145899,0.55,2999.2,2998.7,3.33468242]
[1752232146131,0.55,2999.2,2998.7,0.4284]
[1752232146331,0.4518,2999.2,2998.6,3.33483497]
[1752232146513,6.1438,2999.3,2998.6,3.33485527]
[1752232146707,6.1438,2999.3,2998.8,3.33459953]
[1752232146708,5.5938,2999.3,2998.8,3.33459953]
[1752232147443,5.5938,2999.3,2998.7,3.36809586]
[1752232147816,5.5938,2999.3,2998.8,3.33464733]
[1752232148154,5.5938,2999.3,2998.7,0.03334778]
[1752232148155,5.5908,2999.3,2998.7,0.03334778]
[1752232148353,5.5908,2999.3,2998.8,3.33460769]
[1752232148504,5.5908,2999.3,2998.7,0.03334778]
[1752232148709,5.139,2999.3,2998.7,1.1928]
[1752232148918,5.139,2999.3,2999.1,3.33430563]
[1752232149142,5.13900001,2999.6,2999.1,3.33430563]
[1752232149343,5.13900001,2999.6,2999.0,3.33440207]
[1752232150046,1e-08,2999.6,2999.5,3.33388898]
[1752232150219,1e-08,2999.6,2999.5,3.80448898]
[1752232150421,1e-08,2999.6,2999.5,3.83782786]
[1752232151136,1e-08,2999.6,2999.5,3.80448898]
[1752232151340,1e-08,2999.6,2999.5,0.79028846]
[1752232151537,1e-08,2999.6,2999.4,4.09838147]
[1752232151713,1e-08,2999.6,2999.5,3.33388898]
[1752232152231,1e-08,2999.6,2999.4,4.56895637]
[1752232152442,1e-08,2999.6,2999.4,1.235]
[1752232152650,1e-08,2999.6,2999.4,4.56898218]
[1752232152832,1e-08,2999.6,2999.5,0.7903085]
[1752232154747,1e-08,2999.6,2999.5,4.12419748]
[1752232154946,1e-08,2999.6,2999.5,4.62813636]
[1752232155446,1e-08,2999.6,2999.5,4.59479748]
[1752232155647,1e-08,2999.6,2999.5,4.62813636]
[1752232156014,1e-08,2999.6,2999.5,0.82364738]
[1752232156215,1e-08,2999.6,2999.5,0.4706]
[1752232156440,1e-08,2999.6,2999.5,4.61232786]
[1752232157136,1e-08,2999.6,2999.5,9.75232786]
[1752232157340,1e-08,2999.6,2999.5,9.71898898]
[1752232157848,1e-08,2999.6,2999.5,19.71898898]
[1752232158017,1e-08,2999.6,2999.5,22.02428754]
[1752232158217,1e-08,2999.6,2999.5,22.33423739]
[1752232158453,1e-08,2999.6,2999.5,22.3342374]
[1752232161516,1e-08,2999.7,2999.6,13.33377783]
[1752232161722,1e-08,2999.7,2999.6,25.3573253]
[1752232161922,1e-08,2999.7,2999.6,28.76802466]
[1752232162336,1e-08,2999.7,2999.6,3.72064922]
[1752232162537,1e-08,2999.7,2999.6,3.64372769]
[1752232163234,1e-08,2999.7,2999.6,3.33377783]
[1752232163561,1e-08,2999.7,2999.6,3.3671156]
[1752232163860,1e-08,2999.7,2999.6,8.48877783]
[1752232164059,1e-08,2999.7,2999.5,3.33388338]
[1752232164060,1e-08,2999.7,2999.5,5.154]
[1752232164234,1e-08,2999.7,2999.5,6.00279415]
[1752232164933,1e-08,2999.7,2999.5,9.33660745]
[1752232165156,1e-08,2999.7,2999.6,3.33377783]
[1752232165354,1e-08,2999.7,2999.5,9.33663711]
[1752232165732,1e-08,2999.7,2999.5,9.33666528]
[1752232166064,1e-08,2999.7,2999.6,4.26744436]
[1752232166293,0.814,2999.5,2998.0,0.002]
[1752232166568,0.7804,2999.0,2998.1,5.184]
[1752232166738,0.03333794,2998.9,2998.1,8.51941357]
[1752232166934,0.46983794,2998.9,2998.2,0.85214136]
[1752232167249,0.46983794,2998.9,2998.3,5.184]
[1752232169768,0.03333794,2998.9,2998.3,8.5191999]
[1752232169970,0.7804,2999.0,2998.4,3.36838691]
[1752232170176,0.7804,2999.0,2998.5,3.33492576]
[1752232170386,0.7804,2999.0,2998.5,1.18874789]
[1752232170881,0.4365,2998.9,2998.5,1.18874789]
[1752232171291,0.7804,2999.0,2998.5,1.18874789]
[1752232171480,0.4365,2998.8,2998.5,1.18874789]
[1752232171854,0.4365,2998.7,2998.5,1.18874789]
[1752232172059,0.4365,2998.6,2998.2,5.177]
[1752232172261,0.4365,2998.6,2998.3,3.33521321]
[1752232172844,0.7804,2999.0,2998.7,3.33470218]
[1752232174548,0.7804,2999.0,2998.8,3.33462678]
[1752232174744,0.7804,2999.0,2998.8,3.33464233]
[1752232176369,0.7804,2999.0,2998.8,3.33464609]
[1752232176888,0.7804,2999.0,2998.9,3.334556]
[1752232177082,0.7569,2999.3,2999.0,3.33444477]
[1752232177282,0.7569,2999.3,2999.0,3.33438722]
[1752232177471,0.7569,2999.3,2998.9,3.33449134]
[1752232177676,1.1934,2999.3,2998.9,3.33449134]
[1752232177996,1.1934,2999.3,2998.8,3.33461833]
[1752232178688,1.1934,2999.3,2998.9,3.33455521]
[1752232178893,1.1934,2999.3,2998.6,0.4706]
[1752232179058,1.1934,2999.3,2998.8,3.3346672]
[1752232179595,1.1934,2999.3,2998.9,3.33453257]
[1752232179765,0.4365,2999.2,2998.9,3.33453257]
[1752232180788,0.4365,2999.2,2999.0,3.33442826]
[1752232180996,0.4365,2999.2,2998.9,3.33450529]
[1752232181892,0.4365,2999.2,2998.9,3.33450555]
[1752232182093,0.4365,2999.2,2999.0,3.33442508]
[1752232182305,20.55,2999.0,2998.0,0.002]
[1752232182480,10.55,2998.4,2998.0,0.002]
[1752232182685,1.3145,2998.1,2998.0,0.002]
[1752232182860,0.55,2998.0,2996.8,0.002]
[1752232183059,0.55,2997.6,2996.8,0.002]
[1752232183277,0.03333794,2997.5,2996.8,0.002]
[1752232183473,0.4419,2997.4,2996.8,0.002]
[1752232183677,0.47523794,2997.3,2996.8,0.002]
[1752232183872,0.03333794,2997.5,2997.0,3.33665532]
[1752232184083,0.03333794,2997.5,2996.8,3.33887542]
[1752232184084,1.2064,2997.7,2997.1,0.03336558]
[1752232184291,0.8321,2998.0,2997.4,3.33616411]
[1752232184473,0.86543794,2998.0,2997.3,3.33630192]
[1752232184882,0.4419,2997.9,2997.3,3.33630192]
[1752232185194,0.03333794,2997.8,2997.5,3.33610067]
[1752232185568,0.4419,2997.8,2997.5,3.33610067]
[1752232186080,0.783,2997.6,2997.0,3.33659945]
[1752232186288,0.4419,2997.5,2997.0,3.33659945]
[1752232186602,0.4419,2997.4,2996.9,0.002]
[1752232186898,0.783,2997.6,2997.0,0.4505]
[1752232187085,0.783,2997.6,2997.3,3.33627632]
[1752232187262,4.805047,2997.6,2997.3,3.33627632]
[1752232187466,4.805047,2997.6,2997.4,3.33621019]
[1752232187698,4.805047,2997.6,2997.3,3.33631967]
[1752232187877,4.805047,2997.6,2997.4,3.33618804]
[1752232188198,4.805047,2997.6,2997.4,3.33616128]
[1752232188494,4.805047,2997.6,2997.5,3.33611342]
[1752232189767,4.805047,2997.6,2997.4,3.33617131]
[1752232190202,4.805047,2997.6,2997.5,3.33611342]
[1752232190370,4.805047,2997.6,2997.4,3.33617543]
[1752232190785,4.805047,2997.6,2997.5,3.33611342]
[1752232190988,4.022047,2997.6,2997.5,3.33611342]
[1752232191870,0.03333794,2997.8,2997.7,3.33589084]
[1752232192071,4.022047,2998.2,2997.9,3.33559982]
[1752232192275,0.8142,2998.3,2998.1,3.33544578]
[1752232192583,0.7925,2998.6,2998.2,3.33527751]
[1752232192795,0.7925,2998.6,2998.3,3.33516717]
[1752232192992,1.2344,2998.6,2997.7,5.6765]
[1752232193212,0.03333794,2998.5,2998.1,3.33538146]
[1752232193571,0.47523794,2998.5,2998.2,3.3353326]
[1752232193771,0.47523794,2998.5,2998.1,3.3353895]
[1752232194210,0.47523794,2998.5,2998.2,3.3353086]
[1752232195117,0.47523794,2998.5,2998.1,3.33541062]
[1752232195272,0.47523794,2998.5,2998.0,3.3355045]
[1752232195474,0.4419,2998.4,2998.0,3.3355045]
[1752232195695,0.4419,2998.4,2998.1,3.33541128]
[1752232195895,0.4419,2998.3,2998.1,3.33541128]
[1752232196174,0.4419,2998.3,2998.0,3.33550924]
[1752232196376,0.03333794,2998.5,2997.8,3.33572271]
[1752232196574,0.4419,2998.2,2997.9,3.33561207]
[1752232196993,0.4419,2998.2,2997.7,3.33588392]
[1752232196994,0.03333794,2998.5,2997.8,3.33572151]
[1752232197196,0.4419,2998.1,2997.8,3.33572151]
[1752232197399,0.4419,2998.1,2997.5,0.7688]
[1752232197770,0.4419,2998.1,2997.6,3.33597544]
[1752232197995,0.4419,2998.1,2997.8,3.33570951]
[1752232199807,0.4419,2998.1,2997.7,3.33582687]
[1752232199999,0.4419,2998.1,2997.6,3.33598605]
[1752232200198,0.7978,2998.0,2997.7,3.33578578]
[1752232200406,1.2397,2998.0,2997.7,3.33578578]
[1752232201289,0.7978,2998.0,2997.7,3.33578578]
[1752232201482,0.4419,2997.9,2997.7,3.33580193]
[1752232201885,0.4419,2997.9,2997.5,3.33806202]
[1752232202116,0.4419,2997.8,2997.5,3.33803329]
[1752232202413,0.83113794,2998.0,2997.7,3.33588987]
[1752232202781,1.27303794,2998.0,2997.7,3.33588987]
[1752232202983,1.27303794,2998.0,2997.6,3.33595341]
[1752232203202,0.83113794,2998.0,2997.5,0.002]
[1752232203486,0.8074,2997.8,2997.5,0.002]
[1752232203707,1.96900173,2997.8,2997.5,0.002]
[1752232203981,0.55,2997.6,2997.5,0.002]
[1752232204328,16.59873794,2997.6,2997.5,0.002]
[1752232204504,16.5654,2997.6,2997.5,0.002]
[1752232204702,17.0073,2997.6,2997.5,0.002]
[1752232204879,17.66093231,2997.6,2997.5,0.002]
[1752232205523,17.83085137,2997.6,2997.5,0.002]
[1752232207801,17.82174874,2997.6,2997.5,0.002]
[1752232210451,18.53024836,2997.6,2997.5,0.002]
[1752232211377,18.52724836,2997.6,2997.5,0.002]
[1752232211502,18.71195364,2997.6,2997.5,0.002]
[1752232212036,21.75879761,2997.0,2996.9,0.002]
[1752232212200,28.80075923,2997.0,2996.9,0.002]
[1752232212540,29.27455923,2997.0,2996.9,0.002]
[1752232212763,18.84596162,2997.0,2996.9,0.002]
[1752232212909,13.17743458,2997.0,2996.9,0.002]
[1752232213306,18.39843458,2997.0,2996.9,0.002]
[1752232214809,13.17743458,2997.0,2996.9,0.002]
[1752232215158,18.39643458,2997.0,2996.9,0.002]
[1752232216074,5.219,2997.0,2996.9,0.002]
[1752232216399,5.6928,2997.0,2996.9,0.002]
[1752232216530,6.2428,2997.0,2996.9,0.002]
[1752232216733,6.9932,2997.0,2996.9,0.002]
[1752232218534,7.23716995,2997.0,2996.9,0.002]
[1752232218737,7.96088695,2997.0,2996.9,0.002]